bitfinex-derivatives/quotes_SOLF0:USTF0_20220108
["timestamp","ask_amount","ask_price","bid_price","bid_amount"]
[1641673883054,7.32708089,136.55,136.51,4.0]
[1641673883254,27.66479,136.57,136.54,4.0]
[1641673883454,27.66479,136.57,136.56,4.0]
[1641673883654,27.66479,136.57,136.52,8.63477802]
[1641673883855,27.66479,136.57,136.55,1.79255814]
[1641673884057,27.66479,136.57,136.56,4.0]
[1641673884757,27.66479,136.57,136.56,5.79255814]
[1641673885356,27.66479,136.57,136.56,1.79255814]
[1641673885957,27.66479,136.57,136.56,4.59567155]
[1641673886158,27.66479,136.57,136.56,2.80311341]
[1641673887058,27.66479,136.57,136.55,4.0]
[1641673887458,144.30464696,136.64,136.56,5.13717459]
[1641673887660,75.87444696,136.64,136.6,4.0]
[1641673887860,5.14364696,136.65,136.63,4.0]
[1641673888061,5.14364696,136.65,136.59,4.0]
[1641673888359,5.14364696,136.65,136.61,4.0]
[1641673888762,5.14364696,136.65,136.58,4.0]
[1641673888962,22.79167643,136.68,136.62,4.0]
[1641673889162,27.66479,136.67,136.63,4.0]
[1641673889561,27.66479,136.67,136.62,4.0]
[1641673889764,27.66479,136.67,136.6,2.80052289]
[1641673890164,17.61439955,136.66,136.57,15.47130016]
[1641673890362,7.32332479,136.62,136.56,15.47130016]
[1641673890761,7.32171621,136.65,136.56,15.47130016]
[1641673891163,27.66479,136.59,136.57,1.13679766]
[1641673891363,7.32171621,136.65,136.57,1.13679766]
[1641673891564,7.32171621,136.65,136.57,5.13679766]
[1641673891965,5.14364696,136.66,136.61,4.0]
[1641673892366,71.5842,136.68,136.58,1.13679766]
[1641673892565,71.5842,136.68,136.61,4.0]
[1641673892766,71.5842,136.68,136.55,5.829]
[1641673893165,27.66479,136.66,136.58,27.66479]
[1641673893364,27.66479,136.66,136.6,4.0]
[1641673893566,27.66479,136.66,136.58,27.66479]
[1641673894065,27.66479,136.66,136.59,1.13577397]
[1641673894266,27.66479,136.66,136.6,4.0]
[1641673894468,27.66479,136.66,136.59,1.13577397]
[1641673895067,27.66479,136.66,136.62,4.0]
[1641673895467,5.14364696,136.7,136.65,4.0]
[1641673895666,5.14364696,136.7,136.62,4.0]
[1641673895667,5.14364696,136.71,136.67,4.0]
[1641673895867,5.14364696,136.71,136.63,5.13577397]
[1641673896067,5.14364696,136.71,136.68,4.0]
[1641673896269,5.14364696,136.71,136.64,4.0]
[1641673896468,5.14364696,136.71,136.69,4.0]
[1641673896768,5.14364696,136.71,136.63,4.0]
[1641673896970,69.7773,136.74,136.65,1.13396809]
[1641673897169,69.7773,136.74,136.66,4.0]
[1641673897371,17.60923894,136.73,136.71,4.0]
[1641673897975,27.66479,136.75,136.71,4.0]
[1641673898172,27.66479,136.75,136.68,4.0]
[1641673898372,27.66479,136.77,136.74,4.0]
[1641673898573,27.66479,136.77,136.67,31.66479]
[1641673898773,27.66479,136.77,136.71,4.0]
[1641673899377,27.66479,136.77,136.69,4.0]
[1641673899575,7.31582413,136.76,136.66,4.0]
[1641673899980,7.31582413,136.76,136.65,27.66479]
[1641673900175,7.31582413,136.76,136.65,31.66479]
[1641673900376,7.31582413,136.76,136.65,27.66479]
[1641673900575,7.31582413,136.76,136.68,4.0]
[1641673900977,7.31689471,136.74,136.68,4.0]
[1641673901376,7.31689471,136.74,136.65,27.66479]
[1641673901377,34.98168471,136.74,136.67,4.0]
[1641673901576,27.66479,136.74,136.7,4.0]
[1641673901777,27.66479,136.74,136.66,4.0]
[1641673901976,27.66479,136.74,136.72,4.0]
[1641673902378,27.66479,136.74,136.71,4.0]
[1641673902580,27.66479,136.74,136.66,1.828]
[1641673902877,27.66479,136.74,136.65,27.66479]
[1641673903278,27.66479,136.74,136.69,4.0]
[1641673903680,27.66479,136.74,136.67,4.0]
[1641673903883,27.66479,136.74,136.65,27.66479]
[1641673904180,27.66479,136.74,136.67,4.0]
[1641673904381,27.66479,136.74,136.65,27.66479]
[1641673904879,27.66479,136.74,136.69,4.0]
[1641673905081,27.66479,136.74,136.66,1.13431997]
[1641673905282,27.66479,136.74,136.66,5.13431997]
[1641673905480,7.3150214,136.78,136.73,8.0]
[1641673905682,5.14364696,136.79,136.77,4.0]
[1641673905981,135.24560296,136.85,136.72,1.827]
[1641673906182,70.312,136.84,136.72,1.827]
[1641673906381,77.62354493,136.84,136.75,4.0]
[1641673906582,77.62354493,136.84,136.72,8.142]
[1641673907182,77.62354493,136.84,136.75,4.0]
[1641673907383,27.66479,136.81,136.72,8.142]
[1641673907584,27.66479,136.81,136.78,0.68647313]
[1641673907785,27.66479,136.81,136.79,0.68647313]
[1641673907984,27.66479,136.81,136.77,0.68647313]
[1641673908184,27.66479,136.81,136.79,0.68647313]
[1641673908584,27.66479,136.81,136.74,4.0]
[1641673908585,27.66479,136.81,136.76,0.68647313]
[1641673908884,27.66479,136.81,136.73,1.827]
[1641673909086,27.66479,136.81,136.78,0.68647313]
[1641673909285,27.66479,136.81,136.75,27.66479]
[1641673909984,27.66479,136.81,136.72,8.142]
[1641673910185,27.66479,136.81,136.75,0.68647313]
[1641673910384,27.66479,136.81,136.76,0.68647313]
[1641673910584,27.66479,136.83,136.8,0.68647313]
[1641673910785,77.62354493,136.84,136.74,5.377]
[1641673910985,77.62354493,136.84,136.74,9.377]
[1641673911187,70.312,136.84,136.76,4.0]
[1641673911385,70.312,136.84,136.77,0.68647313]
[1641673911585,70.312,136.84,136.76,27.66479]
[1641673911786,70.312,136.84,136.77,0.68647313]
[1641673912286,70.312,136.84,136.79,0.68647313]
[1641673912690,70.312,136.84,136.77,0.68647313]
[1641673913286,70.312,136.84,136.76,27.66479]
[1641673913487,7.31207956,136.83,136.76,27.66479]
[1641673913686,7.31207956,136.83,136.76,28.35126313]
[1641673913887,3.31352687,136.82,136.76,27.66479]
[1641673914288,17.60419346,136.81,136.76,27.66479]
[1641673914986,17.60419346,136.81,136.76,28.35126313]
[1641673915787,17.60419346,136.81,136.76,27.66479]
[1641673915988,17.60419346,136.81,136.75,0.68647313]
[1641673916790,17.60419346,136.82,136.75,0.68647313]
[1641673916989,3.31352687,136.81,136.75,6.08147313]
[1641673917193,3.31352687,136.76,136.7,1.827]
[1641673917491,27.66479,136.74,136.66,27.66479]
[1641673917692,27.66479,136.74,136.65,15.47130016]
[1641673918093,3.31352687,136.73,136.67,0.68647313]
[1641673918293,17.60419346,136.73,136.65,15.47130016]
[1641673918591,17.60419346,136.73,136.64,95.24289]
[1641673918592,17.60419346,136.73,136.67,0.68647313]
[1641673918792,3.31352687,136.72,136.66,1.13414634]
[1641673918993,28.23515045,136.73,136.66,1.82061947]
[1641673919192,17.60419346,136.71,136.66,0.68647313]
[1641673919392,45.26898346,136.71,136.66,0.68647313]
[1641673919796,17.60419346,136.7,136.67,0.68647313]
[1641673920396,17.60419346,136.7,136.62,31.66479]
[1641673920593,17.60419346,136.7,136.68,0.68647313]
[1641673920796,7.31743012,136.73,136.68,0.68647313]
[1641673921299,17.6083585,136.72,136.68,0.68647313]
[1641673921895,17.6083585,136.72,136.63,4.0]
[1641673922096,17.6083585,136.72,136.64,1.829]
[1641673922296,17.6083585,136.72,136.69,0.68647313]
[1641673922698,17.6083585,136.73,136.69,0.68647313]
[1641673922897,17.6083585,136.73,136.71,0.68647313]
[1641673923298,17.6083585,136.73,136.63,5.828]
[1641673923499,17.6083585,136.73,136.69,0.68647313]
[1641673923797,5.14364696,136.76,136.72,0.68647313]
[1641673924000,15.47130016,136.8,136.75,0.68647313]
[1641673924196,15.47130016,136.8,136.72,4.0]
[1641673924197,5.15275778,136.77,136.74,4.0]
[1641673924398,5.15275778,136.77,136.76,0.68647313]
[1641673925496,70.4821,136.82,136.76,0.68647313]
[1641673925497,78.94838465,136.82,136.76,0.68647313]
[1641673925697,78.94838465,136.82,136.73,27.66479]
[1641673925899,78.94838465,136.82,136.76,0.68647313]
[1641673926100,75.63485778,136.82,136.76,0.68647313]
[1641673926299,75.63485778,136.82,136.73,27.66479]
[1641673926698,70.4821,136.82,136.73,27.66479]
[1641673926897,70.4821,136.82,136.77,0.68647313]
[1641673927098,70.4821,136.82,136.74,8.15377629]
[1641673927297,32.81754778,136.83,136.77,0.68647313]
[1641673927499,32.81754778,136.83,136.73,31.66479]
[1641673927702,36.13107465,136.83,136.77,0.68647313]
[1641673927898,3.31352687,136.82,136.73,31.66479]
[1641673928101,32.81754778,136.83,136.78,0.68647313]
[1641673928300,32.81754778,136.83,136.74,4.15333763]
[1641673928500,3.31352687,136.81,136.74,4.15333763]
[1641673929201,3.31352687,136.78,136.74,4.15333763]
[1641673929402,27.66479,136.75,136.74,4.15333763]
[1641673929601,30.97831687,136.75,136.74,4.15333763]
[1641673929801,27.66479,136.75,136.74,4.15333763]
[1641673930001,27.66479,136.75,136.69,15.47130016]
[1641673930503,30.97831687,136.75,136.67,0.68647313]
[1641673930703,30.97831687,136.75,136.66,27.66479]
[1641673930903,3.31352687,136.74,136.66,28.35126313]
[1641673931101,3.31352687,136.74,136.67,4.15599846]
[1641673931302,3.31352687,136.71,136.67,4.15599846]
[1641673931501,30.97831687,136.71,136.67,4.15599846]
[1641673931902,27.66479,136.71,136.67,4.15599846]
[1641673932706,27.66479,136.71,136.67,4.84247159]
[1641673932906,27.66479,136.71,136.67,4.15599846]
[1641673933304,27.66479,136.71,136.68,0.68647313]
[1641673933503,32.81754778,136.75,136.67,4.15599846]
[1641673933703,5.15275778,136.75,136.69,0.68647313]
[1641673933904,5.15275778,136.75,136.71,0.68647313]
[1641673934104,32.81754778,136.76,136.71,0.68647313]
[1641673934302,32.81754778,136.76,136.69,5.724]
[1641673934503,32.81754778,136.76,136.7,0.68647313]
[1641673934903,32.81754778,136.76,136.7,4.15519465]
[1641673935104,27.66479,136.76,136.7,4.15519465]
[1641673935604,30.97831687,136.76,136.7,4.15519465]
[1641673935804,3.31352687,136.75,136.7,4.15519465]
[1641673936206,3.31352687,136.74,136.69,0.68647313]
[1641673936805,3.31352687,136.74,136.66,27.66479]
[1641673937505,3.31352687,136.74,136.67,4.15570831]
[1641673938107,36.13107465,136.76,136.7,0.68647313]
[1641673938310,36.13107465,136.76,136.7,8.63047313]
[1641673939009,3.31352687,136.75,136.7,8.63047313]
[1641673939711,3.31352687,136.74,136.7,8.63047313]
[1641673940010,3.31352687,136.74,136.7,7.944]
[1641673940210,32.81754778,136.76,136.7,7.944]
[1641673940414,5.15275778,136.75,136.7,8.63047313]
[1641673940612,5.15275778,136.75,136.7,7.944]
[1641673941312,32.81754778,136.76,136.7,7.944]
[1641673941811,5.15275778,136.76,136.73,0.68647313]
[1641673942011,5.15275778,136.76,136.75,0.68647313]
[1641673942212,5.15275778,136.79,136.75,0.68647313]
[1641673942412,5.15275778,136.79,136.78,0.68647313]
[1641673943416,5.15275778,136.83,136.72,4.0]
[1641673943615,27.66479,136.81,136.76,0.68647313]
[1641673944215,27.66479,136.81,136.71,44.96409016]
[1641673944516,27.66479,136.81,136.75,0.68647313]
[1641673945016,27.66479,136.81,136.76,0.68647313]
[1641673945217,27.66479,136.81,136.78,0.68647313]
[1641673946116,27.66479,136.81,136.73,5.827]
[1641673946316,27.66479,136.81,136.72,5.827]
[1641673946518,27.66479,136.81,136.76,0.68647313]
[1641673946719,27.66479,136.81,136.76,6.244]
[1641673946917,5.15275778,136.83,136.8,0.68647313]
[1641673947318,5.15275778,136.83,136.77,4.0]
[1641673947518,5.15275778,136.83,136.77,29.49179]
[1641673947719,5.15275778,136.84,136.82,0.68647313]
[1641673948420,5.15275778,136.84,136.83,0.68647313]
[1641673948920,5.15275778,136.88,136.83,0.68647313]
[1641673949121,5.15275778,136.88,136.79,4.0]
[1641673949320,5.15275778,136.88,136.84,0.68647313]
[1641673950121,32.81754778,136.89,136.81,27.66479]
[1641673950622,32.81754778,136.89,136.86,0.68647313]
[1641673950920,27.66479,136.89,136.86,0.68647313]
[1641673953224,27.66479,136.89,136.85,6.631]
[1641673954125,27.66479,136.89,136.87,0.68647313]
[1641673954325,27.66479,136.89,136.86,0.68647313]
[1641673954528,146.88278465,136.92,136.88,0.68647313]
[1641673954727,77.37048465,136.92,136.88,0.68647313]
[1641673955126,77.37048465,136.92,136.85,6.631]
[1641673955327,77.37048465,136.92,136.86,0.68647313]
[1641673955529,27.66479,136.91,136.86,0.68647313]
[1641673955827,27.66479,136.91,136.85,6.631]
[1641673956027,27.66479,136.91,136.88,0.68647313]
[1641673956527,27.66479,136.91,136.84,27.66479]
[1641673956927,27.66479,136.91,136.88,0.68647313]
[1641673958432,5.15275778,136.95,136.9,0.68647313]
[1641673958628,5.15275778,136.95,136.86,1.825]
[1641673958829,5.15275778,136.95,136.86,5.825]
[1641673959128,5.15275778,136.95,136.92,0.68647313]
[1641673959628,27.66479,136.93,136.92,0.68647313]
[1641673959829,27.66479,136.95,136.92,0.68647313]
[1641673960333,5.15275778,136.98,136.94,0.68647313]
[1641673960532,5.15275778,136.98,136.89,5.825]
[1641673960830,5.15275778,136.98,136.9,4.0]
[1641673961035,5.15275778,136.99,136.91,1.825]
[1641673961230,5.15275778,136.99,136.97,0.68647313]
[1641673961429,5.15275778,136.99,136.91,1.825]
[1641673961629,5.15275778,136.99,136.95,0.68647313]
[1641673961830,5.15275778,136.99,136.91,27.66479]
[1641673962029,27.66479,137.0,136.92,0.68647313]
[1641673962430,27.66479,137.0,136.89,27.66479]
[1641673962631,27.66479,137.0,136.93,0.68647313]
[1641673963432,32.81754778,137.0,136.93,0.68647313]
[1641673963733,27.66479,136.97,136.93,0.68647313]
[1641673964334,27.66479,136.97,136.92,0.68647313]
[1641673964734,27.66479,136.97,136.95,0.68647313]
[1641673964933,27.66479,136.97,136.9,4.0]
[1641673965134,27.66479,136.97,136.96,0.68647313]
[1641673965534,27.66479,136.97,136.9,1.825]
[1641673965734,27.66479,136.97,136.94,0.68647313]
[1641673965933,27.66479,136.97,136.96,0.68647313]
[1641673967634,27.66479,136.97,136.9,1.825]
[1641673967834,27.66479,136.97,136.9,5.825]
[1641673968435,27.66479,136.97,136.96,0.11823942]
[1641673969133,27.66479,136.97,136.92,0.11823942]
[1641673969334,27.66479,136.97,136.9,4.0]
[1641673969534,27.66479,136.97,136.9,5.825]
[1641673969733,27.66479,136.97,136.9,1.825]
[1641673970535,27.66479,136.97,136.93,4.0]
[1641673970936,27.66479,136.97,136.96,0.11823942]
[1641673971837,5.15275778,137.01,136.96,0.11823942]
[1641673972136,5.15275778,137.01,136.98,0.11823942]
[1641673972339,3.88176058,137.0,136.94,0.11823942]
[1641673973841,32.81754778,136.99,136.94,0.11823942]
[1641673974842,3.88176058,136.96,136.9,1.825]
[1641673975044,3.88176058,136.94,136.89,0.11823942]
[1641673975343,3.88176058,136.94,136.83,19.47130016]
[1641673975543,3.88176058,136.94,136.83,15.47130016]
[1641673975744,27.66479,136.92,136.84,31.81547614]
[1641673976143,27.66479,136.92,136.88,0.11823942]
[1641673976343,27.66479,136.92,136.85,4.15068614]
[1641673976542,27.66479,136.92,136.84,27.66479]
[1641673976543,27.66479,136.92,136.89,0.11823942]
[1641673977444,27.66479,136.92,136.84,27.66479]
[1641673977445,27.66479,136.92,136.87,4.0]
[1641673977646,27.66479,136.92,136.9,0.11823942]
[1641673977847,27.66479,136.92,136.88,1.826]
[1641673978047,27.66479,136.94,136.91,4.11823942]
[1641673978248,5.15275778,136.95,136.92,4.0]
[1641673978448,5.15275778,136.95,136.93,1.825]
[1641673978647,5.15275778,136.95,136.92,4.26781441]
[1641673978848,5.15275778,136.95,136.92,0.11823942]
[1641673979047,5.15275778,136.97,136.87,5.825]
[1641673979448,5.15275778,136.97,136.92,0.11823942]
[1641673979648,5.15275778,136.97,136.92,27.66479]
[1641673979847,5.15275778,136.96,136.92,27.66479]
[1641673980248,5.15275778,136.96,136.88,2.8003057]
[1641673980446,3.88176058,136.94,136.88,2.8003057]
[1641673980647,5.15275778,136.96,136.88,2.8003057]
[1641673980648,3.88176058,136.92,136.88,2.8003057]
[1641673981348,9.03451836,136.92,136.84,0.11823942]
[1641673981548,9.03451836,136.92,136.82,22.77590206]
[1641673981749,9.03451836,136.92,136.86,27.78302942]
[1641673981750,5.15275778,136.92,136.86,27.78302942]
[1641673982151,5.15275778,136.92,136.86,27.66479]
[1641673982651,5.15275778,136.92,136.86,27.78302942]
[1641673983352,5.15275778,136.91,136.87,0.11823942]
[1641673983552,5.15275778,136.91,136.86,27.66479]
[1641673984051,5.15275778,136.91,136.87,0.11823942]
[1641673984253,5.15275778,136.9,136.87,0.11823942]
[1641673985253,5.15275778,136.9,136.86,27.66479]
[1641673985453,5.15275778,136.9,136.86,27.78302942]
[1641673985653,5.15275778,136.9,136.86,27.66479]
[1641673986253,16.34285717,136.9,136.82,0.11823942]
[1641673986454,3.88176058,136.89,136.81,15.47130016]
[1641673986654,3.88176058,136.88,136.81,15.47130016]
[1641673987055,3.88176058,136.86,136.81,15.47130016]
[1641673987357,5.15275778,136.86,136.81,2.80738527]
[1641673988255,5.15275778,136.86,136.8,6.84623942]
[1641673988455,3.88176058,136.85,136.8,6.728]
[1641673989056,3.88176058,136.84,136.77,37.13609016]
[1641673989257,3.88176058,136.83,136.75,27.66479]
[1641673989861,27.66479,136.82,136.75,27.66479]
[1641673990058,27.66479,136.82,136.76,4.15346143]
[1641673990659,27.66479,136.82,136.79,0.11823942]
[1641673991463,5.15275778,136.84,136.81,0.11823942]
[1641673991660,5.15275778,136.85,136.82,0.11823942]
[1641673991862,32.81754778,136.85,136.82,0.11823942]
[1641673992263,32.81754778,136.85,136.78,35.71379]
[1641673992463,27.66479,136.85,136.78,35.71379]
[1641673992661,7.30994152,136.87,136.84,0.11823942]
[1641673992862,69.91515778,136.88,136.86,0.11823942]
[1641673993065,5.15275778,136.88,136.83,1.826]
[1641673993264,5.15275778,136.88,136.84,0.11823942]
[1641673993463,5.15275778,136.88,136.84,4.27023861]
[1641673993765,27.66479,136.88,136.84,4.15199919]
[1641673993964,27.66479,136.88,136.84,7.50123942]
[1641673994166,27.66479,136.88,136.84,7.383]
[1641673994768,27.66479,136.9,136.87,0.11823942]
[1641673994967,5.15275778,136.91,136.89,0.11823942]
[1641673995366,5.15275778,136.91,136.87,0.11823942]
[1641673995567,141.47685778,136.95,136.85,1.826]
[1641673995771,141.47685778,136.95,136.86,4.0]
[1641673995965,141.47685778,136.95,136.91,0.11823942]
[1641673996166,76.28175778,136.95,136.88,27.66479]
[1641673996366,76.28175778,136.95,136.92,0.11823942]
[1641673996565,22.77536853,136.98,136.88,27.66479]
[1641673996566,5.15275778,136.96,136.88,31.66479]
[1641673996765,5.15275778,136.96,136.94,0.11823942]
[1641673996966,5.15275778,136.96,136.93,0.11823942]
[1641673997167,5.15275778,136.96,136.89,5.9742806]
[1641673997366,5.15275778,136.96,136.9,4.0]
[1641673997568,5.15275778,136.96,136.91,1.825]
[1641673997768,3.88176058,136.98,136.93,0.11823942]
[1641673997968,3.88176058,136.98,136.92,31.81380349]
[1641673998367,71.98685778,136.99,136.92,27.66479]
[1641673998569,79.29039269,136.99,136.92,27.66479]
[1641673998768,3.88176058,136.98,136.91,0.11823942]
[1641673998968,5.15275778,136.96,136.91,0.11823942]
[1641673999771,5.15275778,136.98,136.89,1.825]
[1641673999970,5.15275778,136.98,136.94,0.11823942]
[1641674000175,5.15275778,136.98,136.91,27.66479]
[1641674000572,5.15275778,136.98,136.94,0.11823942]
[1641674000772,71.98685778,136.99,136.94,0.11823942]
[1641674001272,71.98685778,136.99,136.91,27.66479]
[1641674001773,5.15275778,136.98,136.92,0.11823942]
[1641674002072,5.15275778,136.98,136.97,0.11823942]
[1641674002676,5.15275778,137.01,136.97,0.11823942]
[1641674003075,5.15275778,137.01,136.92,5.825]
[1641674003275,5.15275778,137.01,136.97,0.11823942]
[1641674003677,5.15275778,137.01,136.93,7.29847097]
[1641674003876,74.53335778,137.03,136.97,27.66479]
[1641674004077,74.53335778,137.03,136.97,27.78302942]
[1641674004478,74.53335778,137.03,136.97,35.26502942]
[1641674004679,5.15275778,137.03,137.01,0.11823942]
[1641674005079,5.15275778,137.03,136.97,35.14679]
[1641674005281,5.15275778,137.03,137.01,0.11823942]
[1641674005580,5.15275778,137.03,137.02,0.11823942]
[1641674005779,5.15275778,137.03,137.0,0.11823942]
[1641674005980,5.15275778,137.03,137.0,27.78302942]
[1641674006180,5.15275778,137.05,137.0,27.78302942]
[1641674006380,5.15275778,137.05,137.01,4.0]
[1641674006581,5.15275778,137.05,137.01,7.676]
[1641674006781,5.15275778,137.05,137.02,0.11823942]
[1641674006982,5.15275778,137.05,137.01,7.676]
[1641674007381,27.66479,137.07,137.01,7.676]
[1641674007583,3.88176058,137.05,136.97,27.66479]
[1641674007984,27.66479,137.03,136.97,27.66479]
[1641674008384,27.66479,137.03,136.99,0.11823942]
[1641674008584,27.66479,137.03,137.01,0.11823942]
[1641674008784,27.66479,137.03,137.0,0.11823942]
[1641674009084,27.66479,137.03,136.98,1.824]
[1641674009285,27.66479,137.03,137.0,0.11823942]
[1641674009485,5.15275778,137.06,137.02,0.11823942]
[1641674009685,9.03451836,137.06,136.98,1.94223942]
[1641674009884,27.66479,137.04,136.97,27.78302942]
[1641674010487,27.66479,137.04,136.97,0.11823942]
[1641674010786,27.66479,137.04,136.94,1.824]
[1641674010988,27.66479,137.04,136.93,33.48879]
[1641674011188,27.66479,137.04,136.97,0.11823942]
[1641674011991,27.66479,137.04,136.93,31.66479]
[1641674012190,27.66479,137.04,136.99,0.11823942]
[1641674014291,27.66479,137.04,137.01,0.11823942]
[1641674014894,5.15275778,137.06,137.01,0.11823942]
[1641674015194,5.15275778,137.06,137.05,0.11823942]
[1641674015796,5.15275778,137.07,137.05,0.11823942]
[1641674015996,3.88176058,137.2,137.06,11.40926053]
[1641674016196,71.394,137.21,137.12,0.11823942]
[1641674016397,75.27576058,137.21,137.12,0.11823942]
[1641674016595,71.394,137.21,137.12,0.11823942]
[1641674016795,3.88176058,137.19,137.12,0.11823942]
[1641674016996,90.62001228,137.21,137.12,0.11823942]
[1641674017196,90.62001228,137.21,137.09,5.823]
[1641674017394,86.7382517,137.21,137.14,0.11823942]
[1641674017595,86.7382517,137.21,137.16,0.11823942]
[1641674017795,86.7382517,137.21,137.14,0.11823942]
[1641674017998,86.7382517,137.21,137.16,27.66479]
[1641674018196,71.394,137.21,137.14,27.66479]
[1641674018395,71.394,137.21,137.13,0.11823942]
[1641674018597,75.27576058,137.21,137.12,0.11823942]
[1641674019096,78.68608444,137.21,137.12,0.11823942]
[1641674019296,78.68608444,137.21,137.09,1.822]
[1641674019497,82.56784502,137.21,137.13,0.11823942]
[1641674019696,82.56784502,137.21,137.09,1.822]
[1641674019897,34.95740623,137.2,137.1,27.66479]
[1641674020096,38.83916681,137.2,137.12,0.11823942]
[1641674020499,3.88176058,137.18,137.12,0.11823942]
[1641674020697,31.54655058,137.2,137.13,0.11823942]
[1641674021098,27.66479,137.2,137.13,0.11823942]
[1641674021298,31.54655058,137.2,137.13,0.11823942]
[1641674021698,27.66479,137.2,137.15,0.11823942]
[1641674022299,27.66479,137.2,137.13,27.66479]
[1641674022799,27.66479,137.2,137.15,0.11823942]
[1641674023001,71.394,137.21,137.15,0.11823942]
[1641674023399,71.394,137.21,137.13,27.66479]
[1641674023600,3.88176058,137.16,137.13,27.66479]
[1641674023801,71.394,137.21,137.08,0.11823942]
[1641674024100,3.88176058,137.11,137.05,27.66479]
[1641674024299,27.66479,137.12,137.05,27.66479]
[1641674024500,27.66479,137.12,137.03,29.48779]
[1641674024700,27.66479,137.12,137.06,0.11823942]
[1641674024900,29.18110523,137.17,137.03,29.48779]
[1641674024901,6.101956,137.22,137.11,8.0]
[1641674025104,6.101956,137.22,137.18,4.0]
[1641674025301,6.101956,137.22,137.19,4.0]
[1641674025502,6.101956,137.22,137.19,6.11]
[1641674025702,6.101956,137.22,137.19,10.11]
[1641674025902,71.666,137.29,137.21,62.61688188]
[1641674026101,110.85265523,137.3,137.21,62.61688188]
[1641674026302,10.66,137.3,137.21,62.61688188]
[1641674026502,10.66,137.3,137.21,55.32958]
[1641674027602,20.0,137.29,137.21,55.32958]
[1641674027802,20.0,137.29,137.21,27.66479]
[1641674028005,27.66479,137.26,137.18,27.66479]
[1641674028203,27.66479,137.26,137.16,27.66479]
[1641674028403,27.66479,137.26,137.14,7.29102111]
[1641674028604,27.66479,137.26,137.12,4.0]
[1641674028803,27.66479,137.26,137.12,29.16302129]
[1641674029004,27.66479,137.26,137.12,33.16302129]
[1641674029602,27.66479,137.26,137.14,4.0]
[1641674029804,27.66479,137.26,137.14,7.29048956]
[1641674030004,27.66479,137.21,137.1,33.48679]
[1641674030203,27.66479,137.21,137.11,7.29208444]
[1641674030805,27.66479,137.21,137.13,7.29075532]
[1641674031007,27.66479,137.21,137.14,4.0]
[1641674031405,27.66479,137.21,137.15,4.0]
[1641674031605,27.66479,137.21,137.13,7.29075532]
[1641674032006,27.66479,137.21,137.13,11.29075532]
[1641674032206,27.66479,137.21,137.13,7.29075532]
[1641674032405,27.66479,137.21,137.18,4.0]
[1641674032605,27.66479,137.21,137.14,5.96457018]
[1641674033008,27.66479,137.21,137.14,1.822]
[1641674033707,27.66479,137.21,137.11,33.16302129]
[1641674033708,27.66479,137.21,137.1,62.62219623]
[1641674033908,27.66479,137.21,137.15,4.0]
[1641674034106,69.3539,137.24,137.19,4.0]
[1641674034509,69.3539,137.24,137.17,7.28862974]
[1641674034708,10.66,137.3,137.2,4.0]
[1641674034908,10.66,137.3,137.17,7.28862974]
[1641674035309,20.0,137.26,137.17,7.28862974]
[1641674036014,27.66479,137.24,137.15,27.66479]
[1641674036212,27.66479,137.24,137.12,7.29128691]
[1641674036511,27.66479,137.24,137.12,11.29128691]
[1641674037012,27.66479,137.24,137.14,7.29022381]
[1641674037212,27.66479,137.24,137.17,7.28889537]
[1641674037412,27.66479,137.24,137.2,4.0]
[1641674037613,27.66479,137.24,137.18,4.0]
[1641674038013,27.66479,137.24,137.17,34.95368537]
[1641674038212,27.66479,137.24,137.13,11.29102111]
[1641674038414,27.66479,137.24,137.13,7.29102111]
[1641674038914,27.66479,137.24,137.14,4.0]
[1641674039115,92.98519,137.24,137.14,7.29022381]
[1641674040118,27.66479,137.21,137.14,7.29022381]
[1641674040319,27.66479,137.21,137.16,4.0]
[1641674040719,27.66479,137.24,137.17,4.0]
[1641674040919,27.66479,137.24,137.18,7.28836413]
[1641674042522,27.66479,137.24,137.11,33.48679]
[1641674042822,27.66479,137.24,137.11,1.822]
[1641674043022,27.66479,137.24,137.1,7.29235032]
[1641674043226,27.66479,137.24,137.11,4.0]
[1641674043422,27.66479,137.24,137.15,4.0]